lending/lending_fUSD_20240504
["ID","MTS","AMOUNT","RATE_DAILY","PERIOD"]
[325385708,1714804281171,-500.0,0.00041095,30]
[325385709,1714804281182,-1784.57,0.00041095,30]
[325385710,1714804281192,-156.081811,0.00041095,14]
[325385711,1714804281202,-1768.02,0.00041095,30]
[325385712,1714804281211,-500.0,0.00041095,30]
[325385713,1714804281220,-500.0,0.00041095,30]
[325385714,1714804281230,-1611.69,0.00041095,2]
[325385715,1714804281240,-156.081811,0.00041095,14]
[325385716,1714804281250,-156.081811,0.00041095,14]
[325385717,1714804281260,-1874.17,0.00041095,30]
[325385718,1714804281271,-500.65122142,0.00041095,30]
[325385719,1714804281281,-500.0,0.00041095,30]
[325385720,1714804281291,-413.98868427,0.00041095,30]
[325385721,1714804281300,-926.38,0.00041095,30]
[325385722,1714804281310,-500.0,0.00041095,30]
[325385723,1714804281319,-500.0,0.00041095,30]
[325385724,1714804281330,-846.34,0.00041095,30]
[325385725,1714804281340,-156.081811,0.00041095,14]
[325385726,1714804281350,-857.181644,0.00041095,14]
[325385727,1714804281359,-156.081811,0.00041095,14]
[325385728,1714804281369,-500.0,0.00041095,30]
[325385729,1714804281379,-156.081817,0.00041095,14]
[325385730,1714804281389,-1065.51,0.00041095,30]
[325385731,1714804281399,-500.0,0.00041095,30]
[325385732,1714804281409,-857.181644,0.00041095,14]
[325385733,1714804281419,-500.0,0.00041095,30]
[325385734,1714804281428,-500.0,0.00041095,30]
[325385735,1714804281439,-857.181644,0.00041095,14]
[325385736,1714804281449,-500.0,0.00041095,30]
[325385737,1714804281460,-881.34,0.00041095,30]
[325385738,1714804281470,-914.736561,0.00041095,14]
[325385739,1714804281480,-500.0,0.00041095,30]
[325385740,1714804281490,-160.243981,0.00041095,14]
[325385741,1714804281500,-857.181644,0.00041095,14]
[325385742,1714804281510,-914.736561,0.00041095,14]
[325385743,1714804281520,-857.181644,0.00041095,14]
[325385744,1714804281530,-160.243981,0.00041095,14]
[325385745,1714804281541,-783.78,0.00041095,30]
[325385746,1714804281551,-914.736561,0.00041095,14]
[325385747,1714804281561,-500.0,0.00041095,30]
[325385748,1714804281571,-160.243981,0.00041095,14]
[325385749,1714804281581,-857.181642,0.00041095,14]
[325385750,1714804281594,-500.0,0.00041095,30]
[325385751,1714804281604,-1259.0,0.00041095,30]
[325385752,1714804281614,-987.69,0.00041095,30]
[325385753,1714804281624,-502.9763557,0.00041095,30]
[325385754,1714804281634,-500.0,0.00041095,30]
[325385755,1714804281644,-914.736561,0.00041095,14]
[325385756,1714804281654,-160.243981,0.00041095,14]
[325385757,1714804281665,-914.736561,0.00041095,14]
[325385758,1714804281675,-160.243981,0.00041095,14]
[325385759,1714804281685,-914.736568,0.00041095,14]
[325385760,1714804281694,-160.243975,0.00041095,14]
[325385761,1714804281705,-500.0,0.00041095,30]
[325385762,1714804281715,-503.23944194,0.00041095,30]
[325385763,1714804281724,-500.0,0.00041095,30]
[325385764,1714804281734,-1409.72,0.00041095,30]
[325385765,1714804281743,-500.0,0.00041095,30]
[325385766,1714804281753,-649.76,0.00041095,30]
[325385767,1714804281763,-500.0,0.00041095,30]
[325385768,1714804281774,-500.0,0.00041095,30]
[325385769,1714804281784,-500.0,0.00041095,30]
[325385770,1714804281793,-500.0,0.00041095,30]
[325385771,1714804281803,-500.0,0.00041095,30]
[325385772,1714804281812,-1280.09,0.00041095,30]
[325385773,1714804281822,-500.0,0.00041095,30]
[325385774,1714804281832,-500.0,0.00041095,30]
[325385775,1714804281842,-500.0,0.00041095,30]
[325385776,1714804281852,-503.59336092,0.00041095,30]
[325385777,1714804281861,-2108.41,0.00041095,30]
[325385778,1714804281871,-500.0,0.00041095,30]
[325385779,1714804281881,-565.62,0.00041095,30]
[325385780,1714804281891,-500.0,0.00041095,30]
[325385781,1714804281900,-1319.35,0.00041095,30]
[325385782,1714804281910,-2077.83,0.00041095,30]
[325385783,1714804281920,-810.04,0.00041095,30]
[325385784,1714804281929,-1940.0,0.00041095,30]
[325385785,1714804281939,-500.0,0.00041095,30]
[325385786,1714804281949,-761.56,0.00041095,30]
[325385787,1714804281959,-241.352972,0.00041095,14]
[325385788,1714804281968,-241.352972,0.00041095,14]
[325385789,1714804281978,-500.0,0.00041095,30]
[325385790,1714804281987,-500.0,0.00041095,2]
[325385791,1714804281997,-241.352972,0.00041095,14]
[325385792,1714804282007,-1006.32,0.00041095,7]
[325385793,1714804282016,-500.0,0.00041095,30]
[325385794,1714804282027,-500.0,0.00041095,30]
[325385795,1714804282036,-241.352972,0.00041095,14]
[325385796,1714804282047,-500.0,0.00041095,30]
[325385797,1714804282056,-500.0,0.00041095,2]
[325385798,1714804282066,-241.352972,0.00041095,14]
[325385799,1714804282076,-1581.5,0.00041095,30]
[325385800,1714804282086,-1020.31,0.00041095,30]
[325385801,1714804282096,-241.352971,0.00041095,14]
[325385802,1714804282107,-579.799043,0.00041095,14]
[325385803,1714804282117,-1257.59,0.00041095,30]
[325385804,1714804282126,-579.799043,0.00041095,14]
[325385805,1714804282136,-500.0,0.00041095,30]
[325385806,1714804282145,-500.0,0.00041095,30]
[325385807,1714804282155,-500.0,0.00041095,30]
[325385808,1714804282165,-579.799043,0.00041095,14]
[325385809,1714804282175,-915.97,0.00041095,30]
[325385810,1714804282186,-500.0,0.00041095,30]
[325385811,1714804282195,-870.47,0.00041095,30]
[325385812,1714804282205,-500.0,0.00041095,30]
[325385813,1714804282215,-500.0,0.00041095,30]
[325385814,1714804282224,-579.799043,0.00041095,14]
[325385815,1714804282234,-579.799043,0.00041095,14]
[325385816,1714804282244,-579.799046,0.00041095,14]
[325385817,1714804282254,-901.71,0.00041095,30]
[325385818,1714804282264,-1367.99,0.00041095,30]
[325385819,1714804282274,-500.0,0.00041095,30]
[325385820,1714804282284,-500.0,0.00041095,30]
[325385821,1714804282294,-500.0,0.00041095,30]
[325385822,1714804282304,-500.0,0.00041095,30]
[325385823,1714804282313,-502.59539379,0.00041095,30]
[325385824,1714804282323,-251.730952,0.00041095,14]
[325385825,1714804282333,-500.0,0.00041095,30]
[325385826,1714804282342,-251.730952,0.00041095,14]
[325385827,1714804282352,-507.91415607,0.00041095,30]
[325385828,1714804282362,-251.730952,0.00041095,14]
[325385829,1714804282371,-500.0,0.00041095,30]
[325385830,1714804282381,-2013.36,0.00041095,30]
[325385831,1714804282391,-238.6714009,0.00041095,30]
[325385832,1714804282401,-500.0,0.00041095,30]
[325385833,1714804282411,-922.12,0.00041095,30]
[325385834,1714804282420,-500.0,0.00041095,30]
[325385835,1714804282430,-628.23,0.00041095,30]
[325385836,1714804282440,-251.730952,0.00041095,14]
[325385837,1714804282450,-618.01,0.00041095,30]
[325385838,1714804282460,-251.730952,0.00041095,14]
[325385839,1714804282470,-251.73096,0.00041095,14]
[325385840,1714804282479,-883.1,0.00041095,30]
[325385841,1714804282489,-179.60556812,0.00041095,30]
[325385842,1714804282499,-500.0,0.00041095,30]
[325385843,1714804282509,-500.0,0.00041095,30]
[325385844,1714804282518,-3150.14,0.00041095,30]
[325385845,1714804282528,-528.19687145,0.00041095,30]
[325385846,1714804282538,-500.0,0.00041095,30]
[325385847,1714804282548,-1804.82,0.00041095,30]
[325385848,1714804282560,-2755.85,0.00041095,30]
[325385849,1714804282570,-1113.45,0.00041095,30]
[325385850,1714804282580,-500.0,0.00041095,30]
[325385851,1714804282591,-500.0,0.00041095,30]
[325385852,1714804282605,-503.71994625,0.00041095,30]
[325385853,1714804282615,-567.51,0.00041095,30]
[325385854,1714804282624,-502.84018404,0.00041095,30]
[325385855,1714804282635,-1474.07,0.00041095,30]
[325385856,1714804282646,-611.78,0.00041095,30]
[325385857,1714804282656,-500.0,0.00041095,30]
[325385858,1714804282666,-2937.47,0.00041095,30]
[325385859,1714804282676,-717.24,0.00041095,30]
[325385860,1714804282687,-500.0,0.00041095,30]
[325385861,1714804282697,-1038.35,0.00041095,30]
[325385862,1714804282708,-634.52646824,0.00041095,30]
[325385863,1714804282718,-500.0,0.00041095,30]
[325385864,1714804282728,-852.43,0.00041095,30]
[325385865,1714804282738,-2270.29,0.00041095,30]
[325385866,1714804282748,-1672.56,0.00041095,30]
[325385867,1714804282757,-528.73,0.00041095,30]
[325385868,1714804282768,-500.0,0.00041095,30]
[325385869,1714804282778,-1878.56,0.00041095,30]
[325385870,1714804282788,-1079.87,0.00041095,30]
[325385871,1714804282797,-514.71,0.00041095,30]
[325385872,1714804282807,-1006.42,0.00041095,30]
[325385873,1714804282817,-524.87394802,0.00041095,30]
[325385874,1714804282827,-2608.1,0.00041095,30]
[325385875,1714804282837,-1630.42,0.00041095,30]
[325385876,1714804282847,-657.41,0.00041095,30]
[325385877,1714804282856,-962.957122,0.00041095,14]
[325385878,1714804282866,-151.0,0.00041095,14]
[325385879,1714804282875,-151.0,0.00041095,14]
[325385880,1714804282885,-962.957122,0.00041095,14]
[325385881,1714804282978,-500.0,0.00041095,30]
[325385882,1714804282988,-151.0,0.00041095,14]
[325385883,1714804282998,-962.957122,0.00041095,14]
[325385884,1714804283007,-500.0,0.00041095,30]
[325385885,1714804283016,-2322.58,0.00041095,30]
[325385886,1714804283027,-500.0,0.00041095,30]
[325385887,1714804283037,-962.957122,0.00041095,14]
[325385888,1714804283046,-962.957122,0.00041095,14]
[325385889,1714804283055,-962.95712,0.00041095,14]
[325385890,1714804283065,-659.45,0.00041095,30]
[325385891,1714804283075,-500.0,0.00041095,30]
[325385892,1714804283085,-500.0,0.00041095,30]
[325385893,1714804283094,-500.0,0.00041095,30]
[325385894,1714804283104,-546.23,0.00041095,30]
[325385895,1714804283113,-2545.47,0.00041095,30]
[325385896,1714804283123,-984.1,0.00041095,30]
[325385897,1714804283133,-500.0,0.00041095,30]
[325385898,1714804283143,-500.0,0.00041095,30]
[325385899,1714804283153,-813.57,0.00041095,30]
[325385900,1714804283162,-1006.96,0.00041095,30]
[325385901,1714804283172,-500.0,0.00041095,30]
[325385902,1714804283182,-500.0,0.00041095,30]
[325385903,1714804283191,-1152.69,0.00041095,30]
[325385904,1714804283206,-2531.0,0.00041095,30]
[325385905,1714804283216,-521.46,0.00041095,30]
[325385906,1714804283226,-500.0,0.00041095,30]
[325385907,1714804283235,-591.77,0.00041095,30]
[325385908,1714804283245,-151.0,0.00041095,14]
[325385909,1714804283255,-151.0,0.00041095,14]
[325385910,1714804283265,-500.0,0.00041095,30]
[325385911,1714804283275,-151.0,0.00041095,14]
[325385912,1714804283285,-560.6910974,0.00041095,30]
[325385913,1714804283295,-500.0,0.00041095,30]
[325385914,1714804283304,-538.23,0.00041095,30]
[325385915,1714804283314,-500.0,0.00041095,30]
[325385916,1714804283323,-500.0,0.00041095,30]
[325385917,1714804283334,-500.0,0.00041095,2]
[325385918,1714804283343,-1634.81,0.00041095,30]
[325385919,1714804283354,-500.0,0.00041095,30]
[325385920,1714804283364,-500.0,0.00041095,30]
[325385921,1714804283374,-500.0,0.00041095,30]
[325385922,1714804283383,-1694.89,0.00041095,30]
[325385923,1714804283393,-508.02085342,0.00041095,30]
[325385924,1714804283402,-1425.16,0.00041095,30]
[325385925,1714804283412,-500.0,0.00041095,30]
[325385926,1714804283421,-504.31088532,0.00041095,30]
[325385927,1714804283431,-663.29,0.00041095,30]
[325385928,1714804283440,-1243.99,0.00041095,30]
[325385929,1714804283450,-1090.81,0.00041095,30]
[325385930,1714804283461,-500.0,0.00041095,30]
[325385931,1714804283470,-690.86,0.00041095,30]
[325385932,1714804283479,-500.0,0.00041095,30]
[325385933,1714804283489,-2685.9,0.00041095,30]
[325385934,1714804283499,-1531.17,0.00041095,30]
[325385935,1714804283508,-705.97,0.00041095,30]
[325385936,1714804283518,-1068.48,0.00041095,30]
[325385937,1714804283527,-1070.62,0.00041095,30]
[325385938,1714804283537,-810.19,0.00041095,30]
[325385939,1714804283547,-959.01,0.00041095,30]
[325385940,1714804283557,-560.78,0.00041095,30]
[325385941,1714804283567,-522.34014246,0.00041095,30]
[325385942,1714804283576,-500.0,0.00041095,30]
[325385943,1714804283586,-500.0,0.00041095,30]
[325385944,1714804283596,-511.97339215,0.00041095,30]
[325385945,1714804283608,-500.0,0.00041095,30]
[325385946,1714804283619,-426.13724,0.00041095,14]
[325385947,1714804283628,-500.0,0.00041095,30]
[325385948,1714804283638,-500.0,0.00041095,30]
[325385949,1714804283648,-426.13724,0.00041095,14]
[325385950,1714804283657,-500.0,0.00041095,30]
[325385951,1714804283667,-426.13724,0.00041095,14]
[325385952,1714804283676,-981.0,0.00041095,30]
[325385953,1714804283688,-639.37492798,0.00041095,30]
[325385954,1714804283700,-500.0,0.00041095,30]
[325385955,1714804283710,-500.0,0.00041095,30]
[325385956,1714804283720,-500.0,0.00041095,30]
[325385957,1714804283730,-873.41,0.00041095,30]
[325385958,1714804283740,-1563.11,0.00041095,30]
[325385959,1714804283750,-1086.48,0.00041095,30]
[325385960,1714804283759,-426.13724,0.00041095,14]
[325385961,1714804283769,-500.0,0.00041095,30]
[325385962,1714804283778,-151.0,0.00041095,14]
[325385963,1714804283788,-1795.12,0.00041095,30]
[325385964,1714804283797,-151.0,0.00041095,14]
[325385965,1714804283806,-426.13724,0.00041095,14]
[325385966,1714804283816,-151.0,0.00041095,14]
[325385967,1714804283825,-426.13723,0.00041095,14]
[325385968,1714804283835,-500.0,0.00041095,30]
[325385969,1714804283844,-1366.37,0.00041095,30]
[325385970,1714804283854,-974.98,0.00041095,30]
[325385971,1714804283863,-200.329008,0.00041095,14]
[325385972,1714804283874,-153.968188,0.00041095,14]
[325385973,1714804283883,-500.0,0.00041095,30]
[325385974,1714804283893,-153.968188,0.00041095,14]
[325385975,1714804283903,-2156.56,0.00041095,30]
[325385976,1714804283913,-153.968188,0.00041095,14]
[325385977,1714804283923,-1625.74,0.00041095,30]
[325385978,1714804283932,-500.0,0.00041095,30]
[325385979,1714804283942,-562.09,0.00041095,30]
[325385980,1714804283951,-153.968188,0.00041095,14]
[325385981,1714804283962,-153.968188,0.00041095,14]
[325385982,1714804283973,-2751.84,0.00041095,30]
[325385983,1714804283982,-153.968178,0.00041095,14]
[325385984,1714804283991,-813.51,0.00041095,30]
[325385985,1714804284001,-1132.54,0.00041095,30]
[325385986,1714804284011,-1316.82,0.00041095,30]
[325385987,1714804284023,-1058.81,0.00041095,30]
[325385988,1714804284033,-500.0,0.00041095,30]
[325385989,1714804284043,-500.0,0.00041095,30]
[325385990,1714804284052,-1415.59,0.00041095,30]
[325385991,1714804284061,-500.0,0.00041095,30]
[325385992,1714804284071,-2376.39,0.00041095,30]
[325385993,1714804284080,-500.0,0.00041095,30]
[325385994,1714804284090,-500.0,0.00041095,30]
[325385995,1714804284100,-500.0,0.00041095,30]
[325385996,1714804284109,-500.0,0.00041095,30]
[325385997,1714804284119,-743.8,0.00041095,30]
[325385998,1714804284128,-547.13,0.00041095,30]
[325385999,1714804284137,-551.0,0.00041095,30]
[325386000,1714804284146,-500.0,0.00041095,30]
[325386001,1714804284155,-169.41501176,0.00041095,30]
[325386002,1714804284165,-3663.32,0.00041095,30]
[325386003,1714804284174,-503.91436441,0.00041095,30]
[325386004,1714804284183,-503.05330019,0.00041095,30]
[325386005,1714804284193,-500.0,0.00041095,30]
[325386006,1714804284202,-1299.01,0.00041095,30]
[325386007,1714804284215,-500.0,0.00041095,30]
[325386008,1714804284223,-1073.64,0.00041095,30]
[325386009,1714804284232,-516.76,0.00041095,30]
[325386010,1714804284241,-502.89901431,0.00041095,30]
[325386011,1714804284250,-500.0,0.00041095,30]
[325386012,1714804284259,-500.0,0.00041095,30]
[325386013,1714804284268,-1416.17,0.00041095,30]
[325386014,1714804284277,-500.0,0.00041095,30]
[325386015,1714804284286,-603.91,0.00041095,30]
[325386016,1714804284296,-500.0,0.00041095,30]
[325386017,1714804284305,-500.0,0.00041095,30]
[325386018,1714804284314,-500.0,0.00041095,30]
[325386019,1714804284324,-500.0,0.00041095,30]
[325386020,1714804284334,-302.15244446,0.00041095,30]
[325386021,1714804284344,-4954.14,0.00041095,30]
[325386022,1714804284353,-1310.44,0.00041095,30]
[325386023,1714804284363,-500.0,0.00041095,30]
[325386024,1714804284373,-310.60112881,0.00041095,30]
[325386025,1714804284383,-1002.34,0.00041095,30]
[325386026,1714804284391,-650.27,0.00041095,30]
[325386027,1714804284400,-3599.94,0.00041095,30]
[325386028,1714804284410,-500.0,0.00041095,30]
[325386029,1714804284419,-692.42,0.00041095,30]
[325386030,1714804284429,-507.50119341,0.00041095,30]
[325386031,1714804284438,-500.0,0.00041095,30]
[325386032,1714804284447,-501.52101502,0.00041095,2]
[325386033,1714804284461,-1570.16,0.00041095,30]
[325386034,1714804284471,-2363.75,0.00041095,30]
[325386035,1714804284481,-500.0,0.00041095,30]
[325386036,1714804284490,-2354.58,0.00041095,2]
[325386037,1714804284499,-500.0,0.00041095,30]
[325386038,1714804284508,-500.0,0.00041095,30]
[325386039,1714804284518,-500.0,0.00041095,30]
[325386040,1714804284529,-500.0,0.00041095,30]
[325386041,1714804284539,-1271.01,0.00041095,30]
[325386042,1714804284550,-552.01,0.00041095,30]
[325386043,1714804284565,-1041.13,0.00041095,30]
[325386044,1714804284578,-500.0,0.00041095,30]
[325386045,1714804284588,-500.0,0.00041095,30]
[325386046,1714804284603,-500.0,0.00041095,30]
[325386047,1714804284612,-511.64571781,0.00041095,30]
[325386048,1714804284622,-1702.06,0.00041095,30]
[325386049,1714804284632,-1517.05,0.00041095,30]
[325386050,1714804284643,-500.0,0.00041095,30]
[325386051,1714804284652,-502.79485885,0.00041095,30]
[325386052,1714804284662,-298.86208128,0.00041095,30]
[325386053,1714804284672,-500.0,0.00041095,30]
[325386054,1714804284682,-502.76597381,0.00041095,30]
[325386055,1714804284691,-499.24836707,0.00041095,30]
[325386056,1714804284701,-601.87,0.00041095,30]
[325386057,1714804284713,-500.0,0.00041095,30]
[325386058,1714804284723,-512.00076662,0.00041095,30]
[325386059,1714804284732,-549.84,0.00041095,30]
[325386060,1714804284742,-500.0,0.00041095,30]
[325386061,1714804284751,-1011.30782738,0.00041095,30]
[325386062,1714804284761,-500.0,0.00041095,30]
[325386063,1714804284771,-2517.01,0.00041095,30]
[325386064,1714804284780,-326.45286763,0.00041095,30]
[325386065,1714804284790,-500.0,0.00041095,30]
[325386066,1714804284799,-2094.05,0.00041095,30]
[325386067,1714804284809,-502.04902153,0.00041095,30]
[325386068,1714804284818,-151.0,0.00041095,14]
[325386069,1714804284828,-151.0,0.00041095,14]
[325386070,1714804284837,-151.0,0.00041095,14]
[325386071,1714804284846,-500.0,0.00041095,30]
[325386072,1714804284855,-534.85058265,0.00041095,30]
[325386073,1714804284865,-1718.16,0.00041095,30]
[325386074,1714804284875,-500.0,0.00041095,30]
[325386075,1714804284884,-500.0,0.00041095,30]
[325386076,1714804284894,-151.0,0.00041095,14]
[325386077,1714804284903,-160.711089,0.00041095,14]
[325386078,1714804284913,-3121.78,0.00041095,30]
[325386079,1714804284923,-511.55944515,0.00041095,30]
[325386080,1714804284932,-500.0,0.00041095,30]
[325386081,1714804284942,-500.0,0.00041095,30]
[325386082,1714804284951,-1026.5,0.00041095,30]
[325386083,1714804284963,-500.0,0.00041095,30]
[325386084,1714804284972,-568.26,0.00041095,30]
[325386085,1714804284982,-2209.57,0.00041095,30]
[325386086,1714804284992,-500.0,0.00041095,30]
[325386087,1714804285002,-500.0,0.00041095,30]
[325386088,1714804285011,-500.0,0.00041095,30]
[325386089,1714804285020,-501.16575862,0.00041095,30]
[325386090,1714804285030,-500.0,0.00041095,30]
[325386091,1714804285040,-500.0,0.00041095,30]
[325386092,1714804285050,-503.98583464,0.00041095,30]
[325386093,1714804285059,-500.0,0.00041095,30]
[325386094,1714804285068,-502.09979054,0.00041095,30]
[325386095,1714804285077,-500.0,0.00041095,30]
[325386096,1714804285086,-500.0,0.00041095,30]
[325386097,1714804285096,-500.0,0.00041095,30]
[325386098,1714804285105,-500.0,0.00041095,30]
[325386099,1714804285115,-867.27,0.00041095,30]
[325386100,1714804285124,-504.12925078,0.00041095,30]
[325386101,1714804285134,-1102.95,0.00041095,30]
[325386102,1714804285143,-500.0,0.00041095,30]
[325386103,1714804285152,-501.81987302,0.00041095,30]
[325386104,1714804285162,-505.05478854,0.00041095,30]
[325386105,1714804285172,-500.0,0.00041095,30]
[325386106,1714804285181,-500.0,0.00041095,30]
[325386107,1714804285191,-500.0,0.00041095,30]
[325386108,1714804285200,-500.0,0.00041095,30]
[325386109,1714804285211,-2031.24,0.00041095,30]
[325386110,1714804285221,-500.0,0.00041095,30]
[325386111,1714804285230,-500.0,0.00041095,30]
[325386112,1714804285240,-500.0,0.00041095,30]
[325386113,1714804285250,-500.0,0.00041095,30]
[325386114,1714804285260,-2951.41,0.00041095,30]
[325386115,1714804285269,-500.0,0.00041095,30]
[325386116,1714804285279,-690.04,0.00041095,30]
[325386117,1714804285290,-947.3,0.00041095,30]
[325386118,1714804285300,-1018.58,0.00041095,30]
[325386119,1714804285310,-523.68,0.00041095,30]
[325386120,1714804285320,-581.97,0.00041095,30]
[325386121,1714804285330,-500.0,0.00041095,30]
[325386122,1714804285339,-869.86,0.00041095,30]
[325386123,1714804285349,-1474.11,0.00041095,30]
[325386124,1714804285359,-500.0,0.00041095,30]
[325386125,1714804285369,-151.0,0.00041095,14]
[325386126,1714804285380,-500.72922517,0.00041095,30]
[325386127,1714804285390,-151.0,0.00041095,14]
[325386128,1714804285400,-1530.28,0.00041095,30]
[325386129,1714804285410,-228.965476,0.00041095,14]
[325386130,1714804285420,-508.11129691,0.00041095,30]
[325386131,1714804285430,-505.99536236,0.00041095,30]
[325386132,1714804285440,-226.11928,0.00041095,14]
[325386133,1714804285451,-226.11928,0.00041095,14]
[325386134,1714804285463,-226.11928,0.00041095,14]
[325386135,1714804285474,-500.0,0.00041095,30]
[325386136,1714804285484,-500.0,0.00041095,30]
[325386137,1714804285494,-500.0,0.00041095,30]
[325386138,1714804285504,-500.0,0.00041095,30]
[325386139,1714804285514,-503.40542014,0.00041095,30]
[325386140,1714804285524,-501.15143629,0.00041095,30]
[325386141,1714804285533,-1235.1,0.00041095,30]
[325386142,1714804285543,-826.68,0.00041095,30]
[325386143,1714804285554,-226.11928,0.00041095,14]
[325386144,1714804285563,-226.11928,0.00041095,14]
[325386145,1714804285573,-226.119274,0.00041095,14]
[325386146,1714804285583,-1122.24,0.00041095,30]
[325386147,1714804285594,-504.2518958,0.00041095,30]
[325386148,1714804285605,-500.0,0.00041095,30]
[325386149,1714804285616,-1453.62,0.00041095,30]
[325386150,1714804285626,-500.0,0.00041095,30]
[325386151,1714804285636,-588.40449973,0.00041095,30]
[325386152,1714804285647,-500.0,0.00041095,30]
[325386153,1714804285657,-502.15354928,0.00041095,30]
[325386154,1714804285667,-535.85905853,0.00041095,30]
[325386155,1714804285677,-396.5332967,0.00041095,30]
[325386156,1714804285690,-718.53,0.00041095,30]
[325386157,1714804285700,-544.97,0.00041095,30]
[325386158,1714804285712,-1470.14,0.00041095,30]
[325386159,1714804285722,-205.119864,0.00041095,7]
[325386160,1714804285731,-205.119864,0.00041095,7]
[325386161,1714804285741,-205.119864,0.00041095,7]
[325386162,1714804285751,-1219.16,0.00041095,30]
[325386163,1714804285761,-500.0,0.00041095,30]
[325386164,1714804285771,-501.08557331,0.00041095,30]
[325386165,1714804285782,-1137.42,0.00041095,30]
[325386166,1714804285792,-2334.71,0.00041095,30]
[325386167,1714804285802,-500.0,0.00041095,30]
[325386168,1714804285812,-500.0,0.00041095,30]
[325386169,1714804285822,-1249.09,0.00041095,30]
[325386170,1714804285832,-205.119864,0.00041095,7]
[325386171,1714804285842,-1740.23,0.00041095,30]
[325386172,1714804285852,-205.119864,0.00041095,7]
[325386173,1714804285862,-205.11987,0.00041095,7]
[325386174,1714804285872,-501.78580156,0.00041095,30]
[325386175,1714804285883,-500.0,0.00041095,30]
[325386176,1714804285893,-500.0,0.00041095,30]
[325386177,1714804285903,-194.287871,0.00041095,14]
[325386178,1714804285913,-194.287871,0.00041095,14]
[325386179,1714804285923,-194.287871,0.00041095,14]
[325386180,1714804285933,-1058.46,0.00041095,30]
[325386181,1714804285943,-1264.21,0.00041095,30]
[325386182,1714804285954,-500.0,0.00041095,30]
[325386183,1714804285963,-1768.95,0.00041095,30]
[325386184,1714804285973,-1642.56,0.00041095,30]
[325386185,1714804285982,-4117.85,0.00041095,7]
[325386186,1714804285993,-583.83,0.00041095,30]
[325386187,1714804286003,-500.0,0.00041095,30]
[325386188,1714804286013,-194.287871,0.00041095,14]
[325386189,1714804286023,-194.287871,0.00041095,14]
[325386190,1714804286033,-500.0,0.00041095,30]
[325386191,1714804286043,-194.287874,0.00041095,14]
[325386192,1714804286056,-500.0,0.00041095,30]
[325386193,1714804286066,-502.77255806,0.00041095,30]
[325386194,1714804286076,-993.26,0.00041095,30]
[325386195,1714804286086,-1130.16,0.00041095,30]
[325386196,1714804286096,-500.0,0.00041095,30]
[325386197,1714804286106,-1779.99,0.00041095,30]
[325386198,1714804286116,-799.98,0.00041095,30]
[325386199,1714804286126,-500.0,0.00041095,30]
[325386200,1714804286136,-500.0,0.00041095,30]
[325386201,1714804286146,-500.0,0.00041095,30]
[325386202,1714804286156,-750.0,0.00041095,30]
[325386203,1714804286166,-501.67313379,0.00041095,30]
[325386204,1714804286175,-3499.25,0.00041095,30]
[325386205,1714804286186,-513.03937735,0.00041095,30]
[325386206,1714804286196,-3108.38,0.00041095,30]
[325386207,1714804286206,-500.0,0.00041095,30]